fUST/lending_fUST_20250904
["ID","MTS","AMOUNT","RATE_DAILY","PERIOD"]
[383501886,1756962659685,-561.66644274,0.00014241,2]
[383501887,1756962659697,-480.0,0.00014241,2]
[383501888,1756962659706,-480.0,0.00014241,2]
[383501889,1756962659715,-480.0,0.00014241,2]
[383501890,1756962659725,-484.44930049,0.00014241,2]
[383501891,1756962659734,-485.72973982,0.00014241,2]
[383501892,1756962659745,-328.68915224,0.00014241,2]
[383501893,1756962659755,-480.0,0.00014241,2]
[383501894,1756962659764,-481.49039562,0.00014241,2]
[383501895,1756962659773,-480.0,0.00014241,2]
[383501896,1756962659783,-403.9121566,0.00014241,2]
[383501897,1756962659793,-480.0,0.00014241,2]
[383501898,1756962659803,-480.0,0.00014241,2]
[383501899,1756962659813,-501.97913983,0.00014241,2]
[383501900,1756962659827,-480.0,0.00014241,2]
[383501901,1756962659836,-480.0,0.00014241,2]
[383501902,1756962659846,-480.0,0.00014241,2]
[383501903,1756962659855,-480.0,0.00014241,2]
[383501904,1756962659865,-485.7891461,0.00014241,2]
[383501905,1756962659875,-482.91738177,0.00014241,2]
[383501906,1756962659885,-480.0,0.00014241,2]
[383501907,1756962659894,-487.45635064,0.00014241,2]
[383501908,1756962659903,-323.07144135,0.00014241,2]
[383501909,1756962659913,-482.29498068,0.00014241,2]
[383501910,1756962659922,-480.0,0.00014241,2]
[383501911,1756962659932,-480.0,0.00014241,2]
[383501912,1756962659942,-3027.79050709,0.00014242,2]
[383501913,1756962659951,-151.37749275,0.00014263,2]
[383501914,1756962659960,-778.00676863,0.00014297,2]
[383501915,1756962659970,-155.2582415,0.000143,2]
[383501916,1756962659979,-155.4348085,0.000143,2]
[383501917,1756962659988,-164.465716,0.000143,2]
[383501918,1756962659997,-295.1181445,0.000143,2]
[383501919,1756962660007,-388.3851953,0.000143,2]
[383501920,1756962660017,-583.2030344,0.000143,2]
[383501921,1756962660026,-295.1921985,0.000143,2]
[383501922,1756962660037,-583.3372198,0.000143,2]
[383501923,1756962660047,-326.3162691,0.000143,2]
[383501924,1756962660056,-182.6024457,0.000143,2]
[383501925,1756962660066,-388.3851953,0.000143,2]
[383501926,1756962660076,-153.0,0.000143,2]
[383501927,1756962660086,-306.0,0.000143,2]
[383501928,1756962660097,-153.0,0.000143,2]
[383501929,1756962660107,-388.3851953,0.000143,2]
[383501930,1756962660116,-295.1921985,0.000143,2]
[383501931,1756962660126,-1099.6533611,0.000143,2]
[383501932,1756962660135,-161.5001058,0.000143,2]
[383501933,1756962660146,-160.8408387,0.000143,2]
[383501934,1756962660157,-153.0,0.000143,2]
[383501935,1756962660167,-295.1921985,0.000143,2]
[383501936,1756962660177,-388.3851953,0.000143,2]
[383501937,1756962660187,-388.3851953,0.000143,2]
[383501938,1756962660197,-161.4660183,0.000143,2]
[383501939,1756962660207,-318.7664039,0.000143,2]
[383501940,1756962660216,-388.3851953,0.000143,2]
[383501941,1756962660227,-295.1181445,0.000143,2]
[383501942,1756962660238,-388.3851953,0.000143,2]
[383501943,1756962660247,-151.0,0.000143,2]
[383501944,1756962660258,-295.1181445,0.000143,2]
[383501945,1756962660268,-388.3851953,0.000143,2]
[383501946,1756962660277,-168.4887121,0.000143,2]
[383501947,1756962660290,-295.1181445,0.000143,2]
[383501948,1756962660300,-452.0394615,0.000143,2]
[383501949,1756962660310,-158.8841236,0.000143,2]
[383501950,1756962660319,-295.1181445,0.000143,2]
[383501951,1756962660329,-326.6647262,0.000144,2]
[383501952,1756962660339,-295.1181445,0.000144,2]
[383501953,1756962660349,-1086.8724341,0.000144,2]
[383501954,1756962660358,-295.1181445,0.000144,2]
[383501955,1756962660368,-295.1181445,0.000144,2]
[383501956,1756962660379,-934.3371606,0.000144,2]
[383501957,1756962660388,-301.6348996,0.000144,2]
[383501958,1756962660399,-388.3851953,0.000144,2]
[383501959,1756962660408,-151.0,0.000144,2]
[383501960,1756962660418,-151.0,0.000144,2]
[383501961,1756962660427,-480.0,0.00014405,2]
[383501962,1756962660437,-480.0,0.00014405,2]
[383501963,1756962660447,-569.95,0.00014405,2]
[383501964,1756962660456,-480.0,0.00014405,2]
[383501965,1756962660466,-898.15,0.00014405,2]
[383501966,1756962660475,-1473.04,0.00014405,2]
[383501967,1756962660485,-263.55326299,0.00014405,2]
[383501968,1756962660495,-480.0,0.00014405,2]
[383501969,1756962660504,-480.0,0.00014405,2]
[383501970,1756962660513,-480.0,0.00014405,2]
[383501971,1756962660522,-158.64057547,0.00014405,2]
[383501972,1756962660533,-500.0,0.00014406,2]
[383501973,1756962660545,-480.0,0.00014411,2]
[383501974,1756962660554,-480.0,0.00014411,2]
[383501975,1756962660564,-954.45,0.00014411,2]
[383501976,1756962660573,-1300.78,0.00014411,2]
[383501977,1756962660582,-480.0,0.00014411,2]
[383501978,1756962660591,-419.41451801,0.00014411,2]
[383501979,1756962660601,-666.01,0.00014411,2]
[383501980,1756962660610,-480.0,0.00014411,2]
[383501981,1756962660620,-1338.8,0.00014411,2]
[383501982,1756962660629,-480.0,0.00014411,2]
[383501983,1756962660638,-480.0,0.00014411,2]
[383501984,1756962660647,-480.0,0.00014411,2]
[383501985,1756962660657,-480.0,0.00014411,2]
[383501986,1756962660666,-480.0,0.00014411,2]
[383501987,1756962660676,-310.3806915,0.00014411,2]
[383501988,1756962660685,-480.0,0.00014411,2]
[383501989,1756962660694,-480.0,0.00014411,2]
[383501990,1756962660703,-187.82247265,0.00014411,2]
[383501991,1756962660713,-480.0,0.00014411,2]
[383501992,1756962660722,-480.0,0.00014411,2]
[383501993,1756962660732,-480.0,0.00014411,2]
[383501994,1756962660742,-480.0,0.00014411,2]
[383501995,1756962660753,-480.0,0.00014411,2]
[383501996,1756962660762,-500.0,0.00014412,2]
[383501997,1756962660772,-280.84683977,0.00014412,2]
[383501998,1756962660781,-151.0,0.00014412,2]
[383501999,1756962660790,-500.0,0.00014412,2]
[383502000,1756962660799,-151.0,0.00014412,2]
[383502001,1756962660809,-502.4679752,0.00014412,2]
[383502002,1756962660818,-500.0,0.00014412,2]
[383502003,1756962660828,-616.50552672,0.00014412,2]
[383502004,1756962660838,-302.0,0.00014412,2]
[383502005,1756962660849,-480.0,0.00014412,2]
[383502006,1756962660859,-307.78507829,0.00014412,2]
[383502007,1756962660868,-480.0,0.00014412,2]
[383502008,1756962660878,-480.0,0.00014412,2]
[383502009,1756962660887,-480.0,0.00014412,2]
[383502010,1756962660896,-480.0,0.00014412,2]
[383502011,1756962660905,-480.0,0.00014412,2]
[383502012,1756962660914,-1779.96,0.00014412,2]
[383502013,1756962660924,-582.52,0.00014412,2]
[383502014,1756962660933,-480.0,0.00014412,2]
[383502015,1756962660943,-490.27072746,0.00014412,2]
[383502016,1756962660952,-480.0,0.00014412,2]
[383502017,1756962660961,-3635.65,0.00014412,2]
[383502018,1756962660971,-480.0,0.00014412,2]
[383502019,1756962660980,-1904.99,0.00014412,2]
[383502020,1756962660989,-838.42,0.00014412,2]
[383502021,1756962660998,-1296.08,0.00014412,2]
[383502022,1756962661008,-480.0,0.00014412,2]
[383502023,1756962661018,-1604.83,0.00014412,2]
[383502024,1756962661027,-480.0,0.00014412,2]
[383502025,1756962661038,-350.62775517,0.00014413,2]
[383502026,1756962661047,-259.98055965,0.00014413,2]
[383502027,1756962661057,-351.0220556,0.00014413,2]
[383502028,1756962661066,-151.46232845,0.00014413,2]
[383502029,1756962661075,-151.0,0.00014413,2]
[383502030,1756962661085,-500.0,0.00014413,2]
[383502031,1756962661095,-547.90811104,0.00014413,2]
[383502032,1756962661105,-212.6375809,0.00014413,2]
[383502033,1756962661115,-500.0,0.00014413,2]
[383502034,1756962661124,-500.0,0.00014413,2]
[383502035,1756962661134,-151.37951468,0.00014413,2]
[383502036,1756962661147,-500.0,0.00014413,2]
[383502037,1756962661158,-152.40546433,0.00014413,2]
[383502038,1756962661167,-151.0,0.00014413,2]
[383502039,1756962661176,-500.0,0.00014413,2]
[383502040,1756962661187,-500.0,0.00014413,2]
[383502041,1756962661196,-480.0,0.00014413,2]
[383502042,1756962661206,-480.0,0.00014413,2]
[383502043,1756962661215,-480.0,0.00014413,2]
[383502044,1756962661226,-480.0,0.00014413,2]
[383502045,1756962661236,-480.0,0.00014413,2]
[383502046,1756962661245,-480.0,0.00014413,2]
[383502047,1756962661254,-480.0,0.00014413,2]
[383502048,1756962661264,-480.0,0.00014413,2]
[383502049,1756962661273,-480.0,0.00014413,2]
[383502050,1756962661283,-480.0,0.00014413,2]
[383502051,1756962661292,-480.0,0.00014413,2]
[383502052,1756962661302,-480.0,0.00014413,2]
[383502053,1756962661312,-488.75987478,0.00014413,2]
[383502054,1756962661321,-480.0,0.00014413,2]
[383502055,1756962661330,-480.0,0.00014413,2]
[383502056,1756962661339,-480.0,0.00014413,2]
[383502057,1756962661348,-480.0,0.00014413,2]
[383502058,1756962661358,-480.0,0.00014413,2]
[383502059,1756962661367,-185.82905496,0.00014413,2]
[383502060,1756962661376,-272.37319001,0.00014413,2]
[383502061,1756962661386,-480.0,0.00014413,2]
[383502062,1756962661395,-329.04937656,0.00014413,2]
[383502063,1756962661404,-480.0,0.00014413,2]
[383502064,1756962661413,-480.0,0.00014413,2]
[383502065,1756962661423,-480.0,0.00014413,2]
[383502066,1756962661432,-482.55395298,0.00014413,2]
[383502067,1756962661442,-265.30524747,0.00014413,2]
[383502068,1756962661451,-480.0,0.00014413,2]
[383502069,1756962661460,-602.10910307,0.00014413,2]
[383502070,1756962661469,-480.0,0.00014413,2]
[383502071,1756962661478,-537.0124891,0.00014413,2]
[383502072,1756962661487,-302.57944759,0.00014413,2]
[383502073,1756962661496,-489.09570265,0.00014413,2]
[383502074,1756962661505,-480.0,0.00014413,2]
[383502075,1756962661514,-480.0,0.00014413,2]
[383502076,1756962661524,-489.4722542,0.00014413,2]
[383502077,1756962661534,-480.0,0.00014413,2]
[383502078,1756962661543,-480.0,0.00014413,2]
[383502079,1756962661555,-480.0,0.00014413,2]
[383502080,1756962661564,-489.98558747,0.00014413,2]
[383502081,1756962661573,-480.0,0.00014413,2]
[383502082,1756962661582,-480.0,0.00014413,2]
[383502083,1756962661591,-480.0,0.00014413,2]
[383502084,1756962661685,-574.20614594,0.00014413,2]
[383502085,1756962661696,-480.0,0.00014413,2]
[383502086,1756962661706,-499.35467289,0.00014413,2]
[383502087,1756962661716,-368.71428083,0.00014413,2]
[383502088,1756962661726,-480.0,0.00014413,2]
[383502089,1756962661735,-480.0,0.00014413,2]
[383502090,1756962661746,-480.0,0.00014413,2]
[383502091,1756962661756,-480.0,0.00014413,2]
[383502092,1756962661766,-484.15995961,0.00014413,2]
[383502093,1756962661775,-480.0,0.00014413,2]
[383502094,1756962661785,-484.82236996,0.00014413,2]
[383502095,1756962661794,-480.0,0.00014413,2]
[383502096,1756962661803,-484.80158554,0.00014413,2]
[383502097,1756962661813,-480.0,0.00014413,2]
[383502098,1756962661822,-480.0,0.00014413,2]
[383502099,1756962661831,-480.0,0.00014413,2]
[383502100,1756962661841,-480.0,0.00014413,2]
[383502101,1756962661851,-480.0,0.00014413,2]
[383502102,1756962661861,-480.0,0.00014413,2]
[383502103,1756962661871,-480.0,0.00014413,2]
[383502104,1756962661880,-480.0,0.00014413,2]
[383502105,1756962661889,-480.0,0.00014413,2]
[383502106,1756962661899,-480.0,0.00014413,2]
[383502107,1756962661909,-347.01706887,0.00014413,2]
[383502108,1756962661919,-609.50926572,0.00014413,2]
[383502109,1756962661928,-480.0,0.00014413,2]
[383502110,1756962661938,-483.05533776,0.00014413,2]
[383502111,1756962661947,-480.0,0.00014413,2]
[383502112,1756962661956,-480.0,0.00014413,2]
[383502113,1756962661967,-480.0,0.00014413,2]
[383502114,1756962661978,-480.0,0.00014413,2]
[383502115,1756962661988,-480.0,0.00014413,2]
[383502116,1756962661998,-480.0,0.00014413,2]
[383502117,1756962662008,-480.0,0.00014413,2]
[383502118,1756962662017,-480.0,0.00014413,2]
[383502119,1756962662026,-480.0,0.00014413,2]
[383502120,1756962662037,-485.16313281,0.00014413,2]
[383502121,1756962662046,-485.76808209,0.00014413,2]
[383502122,1756962662055,-480.0,0.00014413,2]
[383502123,1756962662064,-512.25,0.00014413,2]
[383502124,1756962662074,-480.0,0.00014413,2]
[383502125,1756962662083,-480.0,0.00014413,2]
[383502126,1756962662096,-300.1905687,0.00014413,2]
[383502127,1756962662105,-480.0,0.00014413,2]
[383502128,1756962662115,-480.0,0.00014413,2]
[383502129,1756962662124,-480.0,0.00014413,2]
[383502130,1756962662133,-480.0,0.00014413,2]
[383502131,1756962662144,-480.0,0.00014413,2]
[383502132,1756962662160,-480.0,0.00014413,2]
[383502133,1756962662170,-480.0,0.00014413,2]
[383502134,1756962662180,-480.0,0.00014413,2]
[383502135,1756962662191,-480.0,0.00014413,2]
[383502136,1756962662200,-2059.17,0.00014413,2]
[383502137,1756962662210,-151.0,0.000145,2]
[383502138,1756962662221,-480.0,0.00014512,2]
[383502139,1756962662231,-480.0,0.00014512,2]
[383502140,1756962662241,-480.0,0.00014513,2]
[383502141,1756962662251,-480.0,0.00014513,2]
[383502142,1756962662260,-1134.3,0.00014513,2]
[383502143,1756962662270,-480.0,0.00014513,2]
[383502144,1756962662279,-657.72,0.00014513,2]
[383502145,1756962662289,-480.0,0.00014513,2]
[383502146,1756962662299,-480.0,0.00014514,2]
[383502147,1756962662308,-480.0,0.00014514,2]
[383502148,1756962662317,-480.0,0.00014514,2]
[383502149,1756962662326,-480.0,0.00014514,2]
[383502150,1756962662336,-483.23301559,0.00014514,2]
[383502151,1756962662345,-480.0,0.00014514,2]
[383502152,1756962662355,-483.75239138,0.00014514,2]
[383502153,1756962662364,-329.55049277,0.00014514,2]
[383502154,1756962662373,-480.0,0.00014514,2]
[383502155,1756962662383,-503.05897587,0.00014514,2]
[383502156,1756962662392,-480.0,0.00014514,2]
[383502157,1756962662401,-480.0,0.00014514,2]
[383502158,1756962662410,-480.0,0.00014514,2]
[383502159,1756962662420,-480.0,0.00014514,2]
[383502160,1756962662429,-480.0,0.00014514,2]
[383502161,1756962662438,-480.0,0.00014514,2]
[383502162,1756962662447,-480.0,0.00014514,2]
[383502163,1756962662456,-485.30833844,0.00014515,2]
[383502164,1756962662465,-480.0,0.00014515,2]
[383502165,1756962662474,-480.0,0.00014515,2]
[383502166,1756962662483,-521.40695424,0.00014515,2]
[383502167,1756962662492,-480.0,0.00014515,2]
[383502168,1756962662501,-480.0,0.00014515,2]
[383502169,1756962662510,-255.29099978,0.00014515,2]
[383502170,1756962662518,-480.0,0.00014515,2]
[383502171,1756962662527,-212.00023309,0.00014515,2]
[383502172,1756962662537,-483.94556939,0.00014515,2]
[383502173,1756962662546,-480.0,0.00014515,2]
[383502174,1756962662555,-480.0,0.00014515,2]
[383502175,1756962662563,-480.0,0.00014515,2]
[383502176,1756962662573,-1000.0,0.00014521,2]
[383502177,1756962662582,-160.0,0.00014525,2]
[383502178,1756962662591,-846.4110323,0.00014525,2]
[383502179,1756962662600,-417.15472785,0.00014526,2]
[383502180,1756962662609,-160.0,0.00014526,2]
[383502181,1756962662618,-160.0,0.00014526,2]
[383502182,1756962662626,-160.0,0.00014527,2]
[383502183,1756962662636,-160.0,0.00014527,2]
[383502184,1756962662645,-160.0,0.00014527,2]
[383502185,1756962662656,-160.0,0.00014527,2]
[383502186,1756962662666,-160.0,0.00014527,2]
[383502187,1756962662676,-160.0,0.00014527,2]
[383502188,1756962662686,-260.41666667,0.00014527,2]
[383502189,1756962662696,-530.40833076,0.00014527,2]
[383502190,1756962662705,-217.5338025,0.00014527,2]
[383502191,1756962662715,-232.93421481,0.00014527,2]
[383502192,1756962662724,-500.0,0.00014567,2]
[383502193,1756962662733,-501.10480935,0.00014569,2]
[383502194,1756962662743,-500.0,0.00014583,2]
[383502195,1756962662753,-404.51642387,0.00014583,2]
[383502196,1756962662762,-500.96789446,0.00014583,2]
[383502197,1756962662771,-500.0,0.00014583,2]
[383502198,1756962662781,-501.06396736,0.00014583,2]
[383502199,1756962662790,-500.0,0.00014599,2]
[383502200,1756962662799,-500.0,0.00014599,2]
[383502201,1756962662809,-500.50093476,0.00014599,2]
[383502202,1756962662819,-500.0,0.00014599,2]
[383502203,1756962662828,-500.0,0.00014599,2]
[383502204,1756962662837,-500.0,0.00014599,2]
[383502205,1756962662846,-500.0,0.00014599,2]
[383502206,1756962662855,-500.67600698,0.00014599,2]
[383502207,1756962662865,-151.0,0.000146,2]
[383502208,1756962662875,-151.0,0.000146,2]
[383502209,1756962662884,-292.31718522,0.00014602,2]
[383502210,1756962662893,-246.26132631,0.00014602,2]
[383502211,1756962662902,-500.8973808,0.00014602,2]
[383502212,1756962662911,-500.0,0.00014602,2]
[383502213,1756962662920,-500.0,0.00014602,2]
[383502214,1756962662930,-500.95843424,0.00014602,2]
[383502215,1756962662939,-500.0,0.00014602,2]
[383502216,1756962662948,-500.87498815,0.00014602,2]
[383502217,1756962662957,-500.0,0.00014602,2]
[383502218,1756962662967,-500.0,0.00014602,2]
[383502219,1756962662976,-501.93482529,0.00014607,2]
[383502220,1756962662986,-500.0,0.00014607,2]
[383502221,1756962662995,-373.31752269,0.00014607,2]
[383502222,1756962663004,-502.08692815,0.00014607,2]
[383502223,1756962663013,-501.1281327,0.00014607,2]
[383502224,1756962663022,-500.68659067,0.00014612,2]
[383502225,1756962663032,-217.28705225,0.00014621,2]
[383502226,1756962663041,-502.01557013,0.00014621,2]
[383502227,1756962663050,-480.0,0.00014679,2]
[383502228,1756962663060,-480.0,0.00014679,2]
[383502229,1756962663071,-569.95,0.00014679,2]
[383502230,1756962663080,-480.0,0.00014679,2]
[383502231,1756962663092,-898.15,0.00014679,2]
[383502232,1756962663107,-1473.04,0.00014679,2]
[383502233,1756962663117,-480.0,0.00014679,2]
[383502234,1756962663127,-480.0,0.00014679,2]
[383502235,1756962663137,-480.0,0.00014679,2]
[383502236,1756962663151,-500.0,0.0001468,2]
[383502237,1756962663164,-480.0,0.00014685,2]
[383502238,1756962663174,-480.0,0.00014685,2]
[383502239,1756962663183,-954.45,0.00014685,2]
[383502240,1756962663195,-1300.78,0.00014685,2]
[383502241,1756962663204,-480.0,0.00014685,2]
[383502242,1756962663214,-666.01,0.00014685,2]
[383502243,1756962663225,-480.0,0.00014685,2]
[383502244,1756962663235,-1338.8,0.00014685,2]
[383502245,1756962663245,-480.0,0.00014685,2]
[383502246,1756962663255,-480.0,0.00014685,2]
[383502247,1756962663268,-480.0,0.00014685,2]
[383502248,1756962663279,-480.0,0.00014685,2]
[383502249,1756962663289,-480.0,0.00014685,2]
[383502250,1756962663299,-480.0,0.00014685,2]
[383502251,1756962663308,-480.0,0.00014685,2]
[383502252,1756962663318,-480.0,0.00014685,2]
[383502253,1756962663328,-480.0,0.00014685,2]
[383502254,1756962663337,-480.0,0.00014685,2]
[383502255,1756962663347,-546.1786008,0.00014685,2]
[383502256,1756962663358,-480.0,0.00014685,2]
[383502257,1756962663367,-152.95546327,0.00014686,2]
[383502258,1756962663377,-151.0,0.00014686,2]
[383502259,1756962663387,-551.04989209,0.00014686,2]
[383502260,1756962663397,-230.70479473,0.00014686,2]
[383502261,1756962663406,-551.55272134,0.00014686,2]
[383502262,1756962663415,-480.0,0.00014686,2]
[383502263,1756962663424,-480.0,0.00014686,2]
[383502264,1756962663434,-480.0,0.00014686,2]
[383502265,1756962663443,-480.0,0.00014686,2]
[383502266,1756962663452,-480.0,0.00014686,2]
[383502267,1756962663461,-480.0,0.00014686,2]
[383502268,1756962663471,-1779.96,0.00014686,2]
[383502269,1756962663558,-582.52,0.00014686,2]
[383502270,1756962663576,-480.0,0.00014686,2]
[383502271,1756962663585,-480.0,0.00014686,2]
[383502272,1756962663595,-3635.65,0.00014686,2]
[383502273,1756962663613,-480.0,0.00014686,2]
[383502274,1756962663624,-1904.99,0.00014686,2]
[383502275,1756962663634,-838.42,0.00014686,2]
[383502276,1756962663643,-1296.08,0.00014686,2]
[383502277,1756962663653,-200.55924692,0.00014686,2]
[383502278,1756962663662,-1604.83,0.00014686,2]
[383502279,1756962663671,-480.0,0.00014686,2]
[383502280,1756962663681,-151.0,0.00014687,2]
[383502281,1756962663690,-259.84262843,0.00014687,2]
[383502282,1756962663701,-151.69659301,0.00014687,2]
[383502283,1756962663710,-201.38193744,0.00014687,2]
[383502284,1756962663720,-200.39392557,0.00014687,2]
[383502285,1756962663729,-151.0,0.00014687,2]
[383502286,1756962663739,-500.0,0.00014687,2]
[383502287,1756962663748,-154.79340557,0.00014687,2]
[383502288,1756962663758,-480.0,0.00014687,2]
[383502289,1756962663767,-480.0,0.00014687,2]
[383502290,1756962663777,-480.0,0.00014687,2]
[383502291,1756962663786,-480.0,0.00014687,2]
[383502292,1756962663796,-480.0,0.00014687,2]
[383502293,1756962663805,-480.0,0.00014687,2]
[383502294,1756962663815,-480.0,0.00014687,2]
[383502295,1756962663824,-480.0,0.00014687,2]
[383502296,1756962663834,-308.13303687,0.00014687,2]
[383502297,1756962663844,-480.0,0.00014687,2]
[383502298,1756962663853,-480.0,0.00014687,2]
[383502299,1756962663863,-480.0,0.00014687,2]
[383502300,1756962663872,-480.0,0.00014687,2]
[383502301,1756962663882,-480.0,0.00014687,2]
[383502302,1756962663891,-480.0,0.00014687,2]
[383502303,1756962663901,-480.0,0.00014687,2]
[383502304,1756962663910,-480.0,0.00014687,2]
[383502305,1756962663919,-480.0,0.00014687,2]
[383502306,1756962663929,-480.0,0.00014687,2]
[383502307,1756962663938,-488.19602958,0.00014687,2]
[383502308,1756962663948,-480.0,0.00014687,2]
[383502309,1756962663958,-504.63924242,0.00014687,2]
[383502310,1756962663967,-480.0,0.00014687,2]
[383502311,1756962663977,-480.0,0.00014687,2]
[383502312,1756962663986,-519.20315538,0.00014687,2]
[383502313,1756962663996,-486.22213309,0.00014687,2]
[383502314,1756962664005,-480.0,0.00014687,2]
[383502315,1756962664015,-386.11123846,0.00014687,2]
[383502316,1756962664024,-480.0,0.00014687,2]
[383502317,1756962664035,-480.0,0.00014687,2]
[383502318,1756962664044,-480.0,0.00014687,2]
[383502319,1756962664054,-277.02223718,0.00014687,2]
[383502320,1756962664064,-274.77014352,0.00014687,2]
[383502321,1756962664073,-480.0,0.00014687,2]
[383502322,1756962664083,-488.36526655,0.00014687,2]
[383502323,1756962664093,-480.0,0.00014687,2]
[383502324,1756962664103,-480.0,0.00014687,2]
[383502325,1756962664113,-480.0,0.00014687,2]
[383502326,1756962664123,-405.45872001,0.00014687,2]
[383502327,1756962664133,-480.0,0.00014687,2]
[383502328,1756962664143,-480.0,0.00014687,2]
[383502329,1756962664156,-480.0,0.00014687,2]
[383502330,1756962664165,-305.63438516,0.00014687,2]
[383502331,1756962664175,-480.0,0.00014687,2]
[383502332,1756962664187,-206.47811632,0.00014687,2]
[383502333,1756962664196,-257.85562971,0.00014687,2]
[383502334,1756962664206,-480.0,0.00014687,2]
[383502335,1756962664216,-480.0,0.00014687,2]
[383502336,1756962664228,-480.0,0.00014687,2]
[383502337,1756962664238,-484.44991083,0.00014687,2]
[383502338,1756962664247,-480.0,0.00014687,2]
[383502339,1756962664257,-480.0,0.00014687,2]
[383502340,1756962664266,-480.0,0.00014687,2]
[383502341,1756962664276,-480.0,0.00014687,2]
[383502342,1756962664288,-480.0,0.00014687,2]
[383502343,1756962664297,-480.0,0.00014687,2]
[383502344,1756962664306,-351.87126224,0.00014687,2]
[383502345,1756962664315,-480.0,0.00014687,2]
[383502346,1756962664325,-480.0,0.00014687,2]
[383502347,1756962664334,-512.25,0.00014687,2]
[383502348,1756962664343,-480.0,0.00014687,2]
[383502349,1756962664353,-480.0,0.00014687,2]
[383502350,1756962664362,-480.0,0.00014687,2]
[383502351,1756962664372,-480.0,0.00014687,2]
[383502352,1756962664382,-480.0,0.00014687,2]
[383502353,1756962664391,-480.0,0.00014687,2]
[383502354,1756962664401,-480.0,0.00014687,2]
[383502355,1756962664410,-480.0,0.00014687,2]
[383502356,1756962664420,-480.0,0.00014687,2]
[383502357,1756962664430,-480.0,0.00014687,2]
[383502358,1756962664440,-480.0,0.00014687,2]
[383502359,1756962664450,-2059.17,0.00014687,2]
[383502360,1756962664459,-480.0,0.00014786,2]
[383502361,1756962664469,-480.0,0.00014786,2]
[383502362,1756962664478,-480.0,0.00014787,2]
[383502363,1756962664487,-480.0,0.00014787,2]
[383502364,1756962664497,-1134.3,0.00014787,2]
[383502365,1756962664506,-480.0,0.00014787,2]
[383502366,1756962664515,-657.72,0.00014787,2]
[383502367,1756962664525,-480.0,0.00014787,2]
[383502368,1756962664534,-480.0,0.00014788,2]
[383502369,1756962664545,-480.0,0.00014788,2]
[383502370,1756962664554,-310.13349874,0.00014788,2]
[383502371,1756962664563,-480.0,0.00014788,2]
[383502372,1756962664572,-480.0,0.00014788,2]
[383502373,1756962664582,-480.0,0.00014788,2]
[383502374,1756962664591,-480.0,0.00014788,2]
[383502375,1756962664601,-480.0,0.00014788,2]
[383502376,1756962664611,-480.0,0.00014788,2]
[383502377,1756962664620,-480.0,0.00014788,2]
[383502378,1756962664629,-480.0,0.00014788,2]
[383502379,1756962664639,-480.0,0.00014788,2]
[383502380,1756962664648,-480.0,0.00014788,2]
[383502381,1756962664657,-480.0,0.00014789,2]
[383502382,1756962664667,-487.62643864,0.00014789,2]
[383502383,1756962664678,-480.0,0.00014789,2]
[383502384,1756962664689,-169.0,0.00014789,2]
[383502385,1756962664699,-480.0,0.00014789,2]